Cogmind - Beta 15 @@@ ROGUE MODE // 2025.05.30 @ 22:05:40 Player: LightKnight Result: Destroyed by DAS Turret with DAS Cannon Performance ------------- Evolutions (1) 500 Regions Visited (5) 1000 Robots Destroyed (75) 375 Value Destroyed (1663) 1663 Prototype IDs (46) 920 Alien Tech Used (0) 0 Bonus (311) 311 TOTAL SCORE: 4769 Bonus ------- High Alert Combat Kills 11 Aligned with FarCom 300 Cogmind --------- Core Integrity 0/400 Matter 253/300 Energy 275/275 System Corruption 8% Temperature Cool (0) Movement Treading (240) Ox1 Location -9/Exiles Parts ------- > --- POWER (1) -------- Deuterium Engine > --- PROPULSION (3) --- Light Treads Light Treads Light Treads > --- UTILITY (2) ------ High-capacity Storage Unit Improved Targeting Computer > --- WEAPON (3) ------- AWS/Autocannon > --- INVENTORY (20) --- Deuterium Engine Light Treads Light Treads Experimental Heat Sink High-capacity Battery (250) High-capacity Matter Pod (31) Experimental Targeting Computer Advanced Weapon Cycler AS-neutralizer No. 17b Latent Energy Streamer Firepult Shotgun Improved Grenade Launcher Improved Grenade Launcher Peak State ------------ > --- POWER ------------ Deuterium Engine > --- PROPULSION ------- Light Treads Light Treads Improved Treads > --- UTILITY ---------- High-capacity Storage Unit Improved Propulsion Shielding > --- WEAPON ----------- AWS/Autocannon > --- INVENTORY -------- Deuterium Engine Deuterium Engine Light Treads Light Treads Light Treads Light Treads Light Treads Light Treads High-capacity Battery High-capacity Matter Pod Improved Targeting Computer Latent Energy Streamer Firepult Heavy Assault Rifle Heavy Assault Rifle Shotgun Shotgun Improved Grenade Launcher Improved Grenade Launcher [Rating: 47] Favorites ----------- Power Deuterium Engine Engine Deuterium Engine Propulsion Light Treads Treads Light Treads Leg Aluminum Leg Wheel Wheel Utility High-capacity Storage Unit Device Heat Sink Storage High-capacity Storage Unit Processor Improved Targeting Computer Protection Hardened Medium Armor Plating Weapon Minigun Energy Gun Small Laser Energy Cannon Latent Energy Streamer Ballistic Gun Minigun Ballistic Cannon AWS/Autocannon Launcher Improved Grenade Launcher Special Melee Weapon Improved Datajack Build | -11 -10 -10 -9 -9 -9 ------- Run | Yrd Mat Min Mat Min Exi Slots Evolved 2 | . . . 2 . . Power . | . . . . . . Propulsion 1 | . . . 1 . . Utility . | . . . . . . Weapon 1 | . . . 1 . . Parts Attached 40 | . 7 6 11 . 16 Power 3 | . . 1 1 . 1 Engine 3 | . . 1 1 . 1 Core . | . . . . . . Reactor . | . . . . . . Propulsion 16 | . 2 2 8 . 4 Treads 13 | . 2 . 7 . 4 Leg 1 | . . 1 . . . Wheel 2 | . . 1 1 . . Hover . | . . . . . . Flight . | . . . . . . Utility 6 | . 2 1 . . 3 Device 1 | . 1 . . . . Storage 2 | . 1 . . . 1 Processor 1 | . . . . . 1 Hackware . | . . . . . . Protection 2 | . . 1 . . 1 Artifact . | . . . . . . Weapon 15 | . 3 2 2 . 8 Energy Gun . | . . . . . . Energy Cannon 2 | . . . . . 2 Ballistic Gun 10 | . 3 2 2 . 3 Ballistic Cannon 1 | . . . . . 1 Launcher 1 | . . . . . 1 Special Weapon . | . . . . . . Impact Weapon . | . . . . . . Slashing Weapon . | . . . . . . Piercing Weapon . | . . . . . . Special Melee Weapon 1 | . . . . . 1 Unidentified Prototypes 1 | . . . 1 . . Parts Lost 10 | . . 1 . . 9 Power 1 | . . . . . 1 Propulsion 5 | . . 1 . . 4 Utility 1 | . . . . . 1 Weapon 3 | . . . . . 3 Highest Loss Streak 5 | . . 1 . . 5 To Critical Strikes 3 | . . . . . 3 Average Backups 16 | . 8 12 19 20 18 Power 2 | . 1 2 2 2 1 Propulsion 3 | . . . 5 6 5 Utility 3 | . 1 4 4 4 3 Weapon 5 | . 3 4 6 7 6 Tool/Special . | . . . . . . Unused Backups 28 | . 8 1 9 . 10 Power 6 | . 1 . 4 . 1 Propulsion 7 | . 4 . 1 . 2 Utility 8 | . . . 2 . 6 Weapon 6 | . 3 . 2 . 1 Tool/Special 1 | . . 1 . . . Average Slot Usage (%) 95 | . 98 99 99 100 82 Engine 12 | . 14 14 11 11 11 Treads 28 | . 20 25 31 33 32 Leg 1 | . 7 . . . . Device 3 | . 12 8 . . . Storage 12 | . 14 14 11 11 11 Protection 7 | . . 5 10 11 9 Ballistic Gun 26 | . 26 28 32 33 10 Peak Build Rating 47 | . 10 18 23 23 47 Average Rating 19 | . 9 12 22 23 28 On Entrance 14 | 6 6 10 18 23 23 Naked Turns . | . . . . . . Heaviest Build 117 | 12 52 59 66 66 117 Greatest Support 63 | 20 40 40 63 63 63 Greatest Overweight (x) 6 | . 1 5 6 1 2 Average Overweight (x) 1 | . . 2 . 1 . Largest Inventory Capacity 20 | . 20 20 20 20 20 Average Capacity 19 | . 16 20 20 20 20 Most Carried 20 | . 10 19 20 20 20 Average Carried 16 | . 8 12 19 20 18 Final Capacity 20 | 8 20 20 20 20 20 Final Carried 20 | 6 10 19 20 20 15 Class Distribution -------------------- 51% | Tank 44% | Mutant 3% | Gunner Dominant Class ---------------- Mutant | -10/Materials Mutant | -10/Mines Tank | -9/Materials Tank | -9/Mines Tank | -9/Exiles Resources | -11 -10 -10 -9 -9 -9 ----------- Run | Yrd Mat Min Mat Min Exi Matter Collected 2327 | 200 517 257 799 99 455 Remotely . | . . . . . . Salvage Created 2554 | . 773 43 1350 215 173 Parts 155 | . 53 2 84 12 4 Haulers Intercepted 4 | . 1 . 3 . . Recyclers Shooed 1 | . . . 1 . . Parts Field Recycled . | . . . . . . Retrieved Matter . | . . . . . . Parts Self-Destructed . | . . . . . . Prevented . | . . . . . . Kills | -11 -10 -10 -9 -9 -9 ------- Run | Yrd Mat Min Mat Min Exi Combat Hostiles Destroyed 66 | . 23 4 26 5 8 Guns 61 | . 23 4 26 5 3 AOE 5 | . . . . . 5 Classes Destroyed 14 | . 6 3 4 1 . Worker 1 | . 1 . . . . Builder 4 | . . 1 2 1 . Tunneler 1 | . . . . 1 . Hauler 4 | . 1 . 3 . . Recycler 3 | . . . 3 . . Mechanic 1 | . . . 1 . . Watcher 5 | . 2 . 3 . . Swarmer 23 | . 12 . 11 . . Grunt 19 | . 9 . 6 4 . Duelist 1 | . . . 1 . . Sentry 8 | . . . 8 . . Demolisher 2 | . . 2 . . . Subdweller 2 | . 2 . . . . Assembled 10 | . . 2 . 1 7 Best Kill Streak 7 | . 4 2 6 3 7 Combat Bots Only 7 | . 3 2 4 3 7 Max Kills in Single Turn 3 | . 2 1 2 2 3 Gunslinging 1 | . 1 . 1 . . Exploded 3 | . . . . . 3 Melee . | . . . . . . Uniques/NPCs Destroyed 1 | . . . . . 1 8R-AWN (-9/Exiles) Combat | -11 -10 -10 -9 -9 -9 -------- Run | Yrd Mat Min Mat Min Exi Hostile Shots Fired 271 | . 66 9 102 6 88 Missed 73 | . 16 1 35 2 19 Hits 198 | . 50 8 67 4 69 Melee 7 | . . 2 1 2 2 Projectile 191 | . 50 6 66 2 67 AOE 3 | . . 3 . . . Critical Strikes 31 | . . . . . 31 Actively Blocked 6 | . . . . . 6 Damage Taken 3348 | . 523 215 856 80 1674 Core 550 | . 72 70 108 28 272 Absorbed by Shields . | . . . . . . Redirected to Shielding 106 | . . . . . 106 Core Remaining (%) 71 | 100 . 43 . . . Volleys Fired 169 | . 54 13 61 9 32 Largest 3 | . 2 2 3 3 3 Hottest 73 | . 46 50 73 73 69 Shots Fired 419 | . 106 26 176 27 84 Gun 411 | . 106 26 176 27 76 Cannon 8 | . . . . . 8 Launcher . | . . . . . . Special . | . . . . . . Kinetic 416 | . 106 26 176 27 81 Thermal . | . . . . . . Explosive . | . . . . . . Electromagnetic 3 | . . . . . 3 Robot Hit Streak 14 | . 10 3 14 7 10 Robot Miss Streak 6 | . 3 4 6 2 2 Penetration Max . | . . . . . . Secondary Targets 6 | . 2 . 4 . . Max Gunslinging Chain 1 | . 1 . 1 . . Autonomous 5 | . . . . . 5 Shots Hit Robots 284 | . 70 12 108 17 77 Core Hits 137 | . 37 7 53 9 31 Critical Kills . | . . . . . . Critical Parts Destroyed . | . . . . . . Critical Strikes 1 | . . . . . 1 Destroy 1 | . . . . . 1 Melee Attacks 6 | . . . . . 6 Impact . | . . . . . . Slashing . | . . . . . . Piercing . | . . . . . . Sneak Attacks 6 | . . . . . 6 Combat Hostiles . | . . . . . . Follow-up Attacks . | . . . . . . Damage Inflicted 5379 | . 1113 190 2073 340 1663 Guns 4662 | . 1113 190 2028 337 994 Cannons 257 | . . . . . 257 Explosions 412 | . . . . . 412 Melee . | . . . . . . Ramming 48 | . . . 45 3 . Kinetic 4914 | . 1113 190 2028 337 1246 Thermal . | . . . . . . Explosive . | . . . . . . Electromagnetic 417 | . . . . . 417 Impact . | . . . . . . Slashing . | . . . . . . Piercing . | . . . . . . Highest Corruption 8 | . . . . . 8 Average Corruption 7 | . . . . . 7 Corruption Purged . | . . . . . . Corruption Blocked . | . . . . . . Effects 9 | . . . . . 9 Message Errors 1 | . . . . . 1 Matter Fused 2 | . . . . . 2 Heat Flow Errors 2 | . . . . . 2 Energy Discharges 2 | . . . . . 2 Data Loss (minor) 1 | . . . . . 1 Weapon Failures 1 | . . . . . 1 Overload Shots . | . . . . . . Overflow Damage 4 | . . . 4 . . Projectiles . | . . . . . . Explosions . | . . . . . . Melee 4 | . . . 4 . . Knockbacks 3 | . . . . . 3 Impact . | . . . . . . Kinetic 3 | . . . . . 3 Secondary . | . . . . . . Self-Inflicted Damage . | . . . . . . Shots . | . . . . . . Rammed 5 | . 1 . 3 1 . Targets Rammed 5 | . 1 . 3 1 . Kicked . | . . . . . . Crushed . | . . . . . . Highest Temperature 216 | . . 44 165 63 216 Average Temperature 39 | . . 15 49 27 21 Received Heat Transfer 470 | . 198 80 180 12 . Siege Activations . | . . . . . . Martial Activations . | . . . . . . Shielding Activations . | . . . . . . Robots Disrupted . | . . . . . . Combat Hostiles . | . . . . . . Robots Corrupted 1 | . . . 1 . . Combat Hostiles . | . . . . . . Parts Fried 3 | . . . 3 . . Impact Corruptions 1 | . . . 1 . . Robots Melted . | . . . . . . Combat Hostiles . | . . . . . . Parts Melted . | . . . . . . Heat Transferred . | . . . . . . Parts Sabotaged . | . . . . . . Parts Stolen . | . . . . . . Parts Stripped . | . . . . . . Power Chain Reactions . | . . . . . . Latent Energy Used 512 | . . . . . 512 LE Corruption 8 | . . . . . 8 Alert | -11 -10 -10 -9 -9 -9 ------- Run | Yrd Mat Min Mat Min Exi Maximum Alert Level 2 | . 1 . 2 . . Low Security (%) 74 | . 83 100 45 100 . Level 1 24 | . 16 . 51 . . Level 2 1 | . . . 3 . . Level 3 . | . . . . . . Level 4 . | . . . . . . Level 5 . | . . . . . . High Security . | . . . . . . Max Security . | . . . . . . Peak Influence 410 | . 300 114 410 133 . Initial 133 | . . 114 . 133 . Average 112 | . 109 10 204 39 . Influence Increases 1623 | . 660 57 816 90 . Destroy 0b10 Robot/C 1060 | . 420 40 520 80 . Destroy 0b10 Robot/NC 95 | . 20 5 60 10 . Destroy Leader 258 | . 96 10 152 . . Allied During Kill 2 | . . 2 . . . Successful Hack 84 | . 63 . 21 . . Select Force Hacks 90 | . 60 . 30 . . Disable Machine 30 | . . . 30 . . Destroy Structure 4 | . 1 . 3 . . Influence Decreases 1623 | . 366 351 473 421 12 Entered New Map 402 | . . 180 . 210 12 Time Decay 1201 | . 366 151 473 211 . Lost Ally 20 | . . 20 . . . Squads Dispatched 9 | . 6 1 2 . . Investigation 7 | . 5 1 1 . . Extermination . | . . . . . . Reinforcement 2 | . 1 . 1 . . Assault . | . . . . . . Garrison . | . . . . . . Intercept . | . . . . . . Searches Triggered . | . . . . . . Construction Impeded . | . . . . . . Haulers Reinforced . | . . . . . . Active Scanning Responses . | . . . . . . Cargo Convoy Interrupts . | . . . . . . Stealth | -11 -10 -10 -9 -9 -9 --------- Run | Yrd Mat Min Mat Min Exi Distress Signals 6 | . 1 1 3 1 . Communications Jammed . | . . . . . . Distress Signals . | . . . . . . Times Spotted 85 | . 29 4 40 5 7 Peak Tracking Total 9 | . 4 2 6 3 9 Tactical Retreats 1 | . . . . 1 . Traps | -11 -10 -10 -9 -9 -9 ------- Run | Yrd Mat Min Mat Min Exi Traps Triggered 6 | . 2 . 4 . . Indirectly . | . . . . . . Trap Hack Attempts . | . . . . . . Triggered . | . . . . . . Disarmed 6 | . . . 6 . . Reprogrammed . | . . . . . . Reused . | . . . . . . Traps Extracted . | . . . . . . Installed . | . . . . . . Triggered . | . . . . . . Machines | -11 -10 -10 -9 -9 -9 ---------- Run | Yrd Mat Min Mat Min Exi Machines Disabled 7 | . . . 3 . 4 Max in Single Turn 2 | . . . 1 . 2 Machines Repaired . | . . . . . . Machines Dismantled . | . . . . . . Machines Sabotaged . | . . . . . . Overloaded Fab Kills . | . . . . . . Hacking | -11 -10 -10 -9 -9 -9 --------- Run | Yrd Mat Min Mat Min Exi Machines Accessed 23 | . 9 1 12 . 1 Terminals 18 | . 7 . 11 . . Fabricators . | . . . . . . Repair Stations . | . . . . . . Recycling Units 3 | . 2 . 1 . . Scanalyzers . | . . . . . . Garrison Access . | . . . . . . Total Hacks 58 | . 26 1 30 . 1 Successful 29 | . 16 1 11 . 1 Failed 29 | . 10 . 19 . . Catastrophic 5 | . 4 . 1 . . Database Lockouts . | . . . . . . Manual 41 | . 21 . 19 . 1 Terminals 53 | . 24 . 29 . . Fabricators . | . . . . . . Repair Stations . | . . . . . . Recycling Units 3 | . 2 . 1 . . Scanalyzers . | . . . . . . Garrison Access . | . . . . . . Terminal Hacks 20 | . 9 1 9 . 1 Robot Analysis 3 | . 2 . 1 . . Prototype ID Bank 8 | . 4 . 4 . . Open Door 1 | . . 1 . . . Locate Traps 3 | . 1 . 2 . . Disarm Traps 1 | . . . 1 . . Recall Investigation 1 | . 1 . . . . Hauler Manifests 2 | . 1 . 1 . . Proto ID Catalog 1 | . . . . . 1 Fabricator Hacks . | . . . . . . Repair Station Hacks . | . . . . . . Recycling Unit Hacks . | . . . . . . Scanalyzer . | . . . . . . Garrison Access Hacks . | . . . . . . Unauthorized Hacks 9 | . 7 . 2 . . Terminals 6 | . 5 . 1 . . Botnet 6 | . 5 . 1 . . Fabricators . | . . . . . . Repair Stations . | . . . . . . Recycling Units 3 | . 2 . 1 . . Tunnel 3 | . 2 . 1 . . Scanalyzers . | . . . . . . Garrison Access . | . . . . . . Data Cores Recovered . | . . . . . . Used . | . . . . . . Hacking Detections 17 | . 6 . 11 . . Full Trace Events 1 | . 1 . . . . Feedback Events . | . . . . . . Feedback Blocked . | . . . . . . Robot Schematics Acquired . | . . . . . . Robots Built . | . . . . . . Authchips . | . . . . . . Time . | . . . . . . Total Robot Build Rating . | . . . . . . Part Schematics Acquired . | . . . . . . Parts Built . | . . . . . . Authchips . | . . . . . . Time . | . . . . . . Total Part Build Rating . | . . . . . . Parts Repaired . | . . . . . . Time . | . . . . . . Parts Recycled . | . . . . . . Recycled Matter . | . . . . . . Retrieved Matter . | . . . . . . Retrieved Components . | . . . . . . Parts Scanalyzed . | . . . . . . Part Schematics Acquired . | . . . . . . Parts Damaged . | . . . . . . Bothacking | -11 -10 -10 -9 -9 -9 ------------ Run | Yrd Mat Min Mat Min Exi Used RIF Installer . | . . . . . . Robots Hacked 5 | . . . . . 5 Non-combat 3 | . . . . . 3 Combat 2 | . . . . . 2 Robot Hacks Applied 5 | . . . . . 5 parse_system 5 | . . . . . 5 Relay Couplers Released . | . . . . . . Fabnet Peak Effective % . | . . . . . . Robots Rewired . | . . . . . . Allies Hacked . | . . . . . . Hacks Repelled . | . . . . . . Allies | -11 -10 -10 -9 -9 -9 -------- Run | Yrd Mat Min Mat Min Exi Total Allies 1 | . . 1 . . . Largest Group 1 | . . 1 . . . Highest-Rated Group 31 | . . 31 . . . Highest-Rated Ally 31 | . . 31 . . . Total Orders . | . . . . . . Ally Attacks 1 | . . 1 . . . Total Damage 20 | . . 20 . . . Kills . | . . . . . . Allies Corrupted . | . . . . . . Allies Melted . | . . . . . . Intel | -11 -10 -10 -9 -9 -9 ------- Run | Yrd Mat Min Mat Min Exi Active Infowar (turns) . | . . . . . . Robot Analysis Total 3 | . 2 . 1 . . Derelict Logs Recovered 2 | . . 1 . 1 . Drone Launches . | . . . . . . Drone Recoveries . | . . . . . . Exploration | -11 -10 -10 -9 -9 -9 ------------- Run | Yrd Mat Min Mat Min Exi Turns Passed 7148 | . 1054 1634 2311 616 1533 Spaces Moved 3014 | 1 458 527 1099 243 686 Core . | . . . . . . Treads 2517 | . 264 357 967 243 686 Legs 195 | 1 194 . . . . Wheels 302 | . . 170 132 . . Hover . | . . . . . . Flight . | . . . . . . Fastest Speed 110 | 120 120 155 110 240 160 Average Speed 197 | 120 189 216 186 240 193 Slowest Speed 320 | 120 240 320 240 240 320 Overloaded Moves . | . . . . . . Propulsion Burnouts . | . . . . . . Robots Hopped . | . . . . . . Potential Cave-ins . | . . . . . . Cave-ins Triggered . | . . . . . . Exploration Rate (%) 65 | 2 82 96 92 46 76 Regions Visited 5 Branch Regions 3 Pre-discovered Areas 4 | . 2 . 1 1 . Known Exits Taken . | . . . . . . Unknown Exits Taken 5 | 1 1 1 1 1 . Scrap Searched 2 | . . 1 . 1 . Spaces Dug . | . . . . . . Terrain Destroyed 24 | . . . . . 24 Melee . | . . . . . . Projectile 1 | . . . . . 1 AOE 23 | . . . . . 23 Terrain Rammed . | . . . . . . Walls Destroyed . | . . . . . . Machines Disabled . | . . . . . . Actions | -11 -10 -10 -9 -9 -9 --------- Run | Yrd Mat Min Mat Min Exi Total 3881 | . 541 995 1254 257 834 Wait 540 | . 5 442 32 5 56 Move 3009 | . 457 526 1098 242 686 Hop . | . . . . . . Pick Up 41 | . 8 5 19 . 9 Fast Attach 18 | . 3 3 6 . 6 Attach 21 | . 2 . 3 . 16 Detach 14 | . 2 2 2 . 8 Swap 14 | . 2 3 7 . 2 Drop 44 | . 7 1 23 . 13 Fire 169 | . 54 13 61 9 32 Melee 6 | . . . . . 6 Ram . | . . . . . . Kick . | . . . . . . Crush 5 | . 1 . 3 1 . Escape Stasis . | . . . . . . Rewire . | . . . . . . Trap . | . . . . . . Miscellaneous . | . . . . . . Route ------- -11/Scrapyard -10/Materials (discovered 3 exits: *Mat x2 / *Min) -10/Mines (discovered 3 exits: *Mat x2 / [*Sub]) -9/Materials (discovered 4 exits: [*Mat x2] / [*Min x2]) -9/Mines -9/Exiles (discovered 1 exit: [*Min]) History --------- Turn | Location | Event 1 | -11/Scrapyard | Discovered new exit (range 0) 1 | -11/Scrapyard | Entered Materials 293 | -10/Materials | Discovered new exit (range 4) 300 | -10/Materials | Build established: Mutant 601 | -10/Materials | Derelicts attacked the area 702 | -10/Materials | Discovered new exit (range 10) 1012 | -10/Materials | Discovered new exit (range 11) 1055 | -10/Materials | Entered Mines 1138 | -10/Mines | Assembled infested the area 1727 | -10/Mines | Learned Materials security intel 1983 | -10/Mines | Discovered new exit (range 12) 2064 | -10/Mines | Met a Derelict shopkeep closing up shop 2181 | -10/Mines | Received a Mining Laser from a helpful Derelict 2338 | -10/Mines | Core integrity fell below 50% 2460 | -10/Mines | Received a Rocket Launcher from a helpful Derelict 2545 | -10/Mines | Discovered new exit (range 15) 2675 | -10/Mines | Discovered new exit (range 9) 2689 | -10/Mines | Entered Materials 2689 | -9/Materials | Evolved 2 slots: Propulsion x1, Weapon x1 2986 | -9/Materials | Build established: Tank 3204 | -9/Materials | Discovered new exit (range 6) 4224 | -9/Materials | Discovered new exit (range 14) 4376 | -9/Materials | Discovered new exit (range 14) 4631 | -9/Materials | Discovered new exit (range 13) 5000 | -9/Materials | Entered Mines 5026 | -9/Mines | Met a Derelict bent on vengeance 5173 | -9/Mines | Learned location of Zion (-7) 5192 | -9/Mines | Excavation squad dispatched 5192 | -9/Mines | A large section of the Mines collapsed 5442 | -9/Mines | Excavation squad dispatched 5607 | -9/Mines | Deemed a non-threat by the Exiles lab entrance 5607 | -9/Mines | Discovered new exit (range 5) 5616 | -9/Mines | Entered Exiles 5652 | -9/Exiles | Discovered new exit (range 15) 5676 | -9/Exiles | Met 8R-AWN 5715 | -9/Exiles | Met EX-HEX 5780 | -9/Exiles | Met EX-BIN 5816 | -9/Exiles | Aligned with FarCom system 5818 | -9/Exiles | Given EX-Vault access code 5873 | -9/Exiles | Opened EX-Vault 5899 | -9/Exiles | Found Latent Energy Streamer 5906 | -9/Exiles | Found AWS/Autocannon 5951 | -9/Exiles | Warned to stay clear of 0b10 Research branches 6209 | -9/Exiles | Met EX-DEC 6282 | -9/Exiles | Visited The Gauntlet 6288 | -9/Exiles | Build established: Mutant 6491 | -9/Exiles | Found Firepult 6843 | -9/Exiles | Attacked by the Exiles 6907 | -9/Exiles | Destroyed 7 combat bots 6973 | -9/Exiles | Core integrity fell below 50% 6997 | -9/Exiles | Lost 3 parts (2n1u) 7026 | -9/Exiles | Destroyed 8R-AWN 7033 | -9/Exiles | Found Exp. Targeting Computer 7038 | -9/Exiles | Found AS-neutralizer No. 17b 7142 | -9/Exiles | Core integrity fell below 20% 7149 | -9/Exiles | Destroyed by DAS Turret with DAS Cannon Last Messages --------------- 07026_ 8R-AWN destroyed. 07030_ Acquired 69 matter. 07033_ Acquired Exp. Targeting Computer. 07036_ Acquired Exp. Heat Sink. 07038_ Acquired AS-neutralizer No. 17b. 07041_ Acquired Adv. Weapon Cycler. 07043_ System corrupted: Heat flow error (+122). 07056_ Acquired Hcp. Matter Pod. 07075_ Extracted 100 matter. 07085_ System corrupted: Component data lost. 07092_ Acquired 15 matter. 07104_ System corrupted: Heat flow error (+235). 07104_ Acquired 17 matter. 07107_ Acquired 15 matter. 07120_ Hvy. Assault Rifle destroyed. 07128_ Lgt. Treads destroyed. 07130_ Shotgun destroyed. 07130_ Lgt. Treads destroyed. 07136_ Hvy. Assault Rifle destroyed. 07142_ DAS Turret knocked back. Map ----- +----------------------------------------------------+ | ????????????#######?????????????????????????#" | | #####???????#!!! "#?????????????????????????#" | | #""#??????# "#?????????????????????????#" | | ??????# #?????????????????????????#" | | #????## "#?????????????????????????#" | | #####" ""#????????????? ???????????#" | | ##" ""#????????????" ""?????????## | | #"" ###????????????" ?????????# | | ?# #?????????????"" ??????????#" | | ????# ##????????????"" "#????????#" | | ????### ####????????? ""?????????#" | | ######" #??????????" "?????????##" | | !! ;##?????????# #????????##"" | | ### ;#######?### ###?######"" | | #?## " #;###X# #"###""""""" | | ##??# """""" " "" | | ! "" ###???#"# "" """ " | | ### ###?????#### " " | | ??# #???????????### | | ?# #??????????????##; | | # #????????????????#; % | | #?????????????????# | | #??????????????????# | | ???????????????????# %% """""" | | ???????????????????## % ######"" | | ????????????????????##;% @ ""##????### | | ?????????????????????##"" """##???????? | | ?????????????????????#""" """##????????? | | ?????????????????????#""" ""#?????????? | | ?????????????????????#"" ########??## | | ?????????????????????#""" ## ####" | | ?????????????????????#""% """" | | ?????????????????????##"" | | ??????????????????????#"" % | | ??????????????????????## t | | ???????????????????????#"% " | | ???????????????????????#"""" ""## # | | ???????????????????????#"" ""#### # | | ???????????????????????#" """"##??# # | | ???????????????????????#""" """#??## # | | ???????????????????????## ""##??#! | | ????????????????????????#"" """##???#" | | ????????????????????????##""" ##????#" | | ?????????????????????????##"""" ##?????#!!"" | | ??????????????????????????### #??????##### | | ????????????????????????????##### ##??????????? | | ????????????????????????????????## #???????????? | | ?????????????????????????????????# #???????????? | | ?????????????????????????????????# #???????????? | | ?????????????????????????????????# #???????????? | +----------------------------------------------------+ Best States ------------- Heat Dissipation 35 Energy Generation 14 Energy Capacity 525 Matter Stores 300 Matter Capacity 300 Sight Range 16 Terrain Scan Density 10 Armor Coverage 225 Propulsion Shielding 66 Evasion (%) 55 Targeting Accuracy 6 Recoil Reduction 3 Item Schematics ----------------- None Robot Schematics ------------------ None Fabricated ------------ Nothing Repaired ---------- Nothing Alien Tech Used ----------------- None Achievements -------------- None Challenges ------------ None Game ------ Seed RiotMetafieldDrillbomb Manual? 0 Play Time 00:35:38 Cumulative 304.3 hours Start 2025.05.30 @ 21:26:09 End 2025.05.30 @ 22:05:40 Sessions 1 Manual Loads 0 Difficulty Rogue Special Mode None Game No. 214 Rogue 214 Adventurer 0 Explorer 0 Win Type - Total 24 Types 18/0/4/2/0/0/0/0/0/0 Lore% 86 Gallery% 73 Achievement% 64 Wizard Run 0 Options --------- Layout 0 ASCII 1 Keyboard 1 Movement Arrows Keybinds 0 Fullscreen 2 Font 18/Terminus Map View 76x50 Zoom Use 0% Tactical HUD 1 Map Filters NONE Filters NONE Steam 1 RUN: 886a04d6-f667-4c1f-be15-705713fb8fb8